bitfinex/quotes_ETHUSD_20250822
["timestamp","ask_amount","ask_price","bid_price","bid_amount"]
[1755877776038,1.37717431,4658.9,4658.8,0.021]
[1755877776255,1.7148419,4658.9,4658.8,0.021]
[1755877777065,0.19995016,4658.9,4658.8,0.7382]
[1755877777374,0.02067431,4659.4,4658.8,0.4504]
[1755877777676,0.02067431,4659.4,4659.2,15.02929105]
[1755877777978,1.648,4659.5,4659.3,3.0]
[1755877778496,0.66,4659.4,4658.8,0.021]
[1755877778664,1.648,4659.5,4659.0,3.0]
[1755877778864,0.02067431,4659.4,4659.0,3.0]
[1755877779260,1.648,4659.5,4659.0,3.0]
[1755877779448,1.648,4659.5,4659.1,0.4449]
[1755877779643,1.648,4659.5,4659.2,0.46636291]
[1755877779860,1.648,4659.5,4659.3,0.4449]
[1755877780063,3.885,4660.1,4659.3,0.4449]
[1755877780064,0.02067431,4660.0,4659.3,0.4449]
[1755877780263,0.02067431,4660.0,4659.7,3.0]
[1755877780444,0.02067431,4660.1,4659.7,3.0]
[1755877780647,0.57634174,4660.1,4659.7,3.0]
[1755877780900,0.66,4660.0,4658.8,3.021]
[1755877781215,0.02067431,4659.9,4658.8,3.021]
[1755877782116,0.02067431,4659.9,4658.8,0.021]
[1755877782117,0.66,4658.9,4658.8,0.021]
[1755877782249,6.196,4658.9,4658.8,0.021]
[1755877782453,3.8958,4658.9,4658.8,0.021]
[1755877782669,3.66448528,4658.9,4658.8,0.021]
[1755877782900,7.56648528,4658.9,4658.8,0.021]
[1755877783060,7.99761097,4658.9,4658.8,0.021]
[1755877783252,0.19981097,4658.9,4658.8,0.4659]
[1755877783471,0.02067431,4659.8,4658.8,0.4659]
[1755877783683,1.649,4659.9,4659.2,3.0]
[1755877783889,1.649,4659.9,4659.8,15.02929105]
[1755877784800,1.649,4660.2,4660.0,8.351]
[1755877784983,4.0681,4660.1,4660.0,8.351]
[1755877786069,4.74877431,4660.1,4660.0,8.351]
[1755877786369,5.1799,4660.1,4660.0,8.351]
[1755877786948,4.7281,4660.1,4660.0,8.351]
[1755877787134,0.9323,4660.1,4660.0,8.351]
[1755877787466,0.1072,4660.1,4660.0,8.351]
[1755877787629,1.649,4661.1,4660.0,11.351]
[1755877787820,0.1072,4660.6,4660.1,3.4449]
[1755877788171,0.0012,4660.4,4660.1,3.0]
[1755877788314,0.1072,4660.2,4660.1,3.0]
[1755877788750,0.0012,4660.4,4660.1,5.586778]
[1755877788955,0.0012,4660.4,4660.2,0.4449]
[1755877789250,0.0012,4660.4,4660.0,8.351]
[1755877789460,0.02067431,4660.3,4660.0,8.351]
[1755877789671,2.309,4660.2,4660.0,8.351]
[1755877789832,0.29894174,4660.1,4660.0,8.351]
[1755877790264,4.19794174,4660.1,4660.0,8.351]
[1755877790430,4.19694174,4660.1,4660.0,8.351]
[1755877790631,4.17626743,4660.1,4660.0,8.351]
[1755877791159,4.19694174,4660.1,4660.0,8.351]
[1755877791327,4.17626743,4660.1,4660.0,8.351]
[1755877792065,0.27826743,4660.1,4660.0,8.351]
[1755877792272,3.897,4660.1,4660.0,8.351]
[1755877792475,3.91767431,4660.1,4660.0,8.351]
[1755877793678,3.897,4660.1,4660.0,8.351]
[1755877794380,0.0012,4660.4,4660.1,3.0]
[1755877794548,0.002,4660.9,4660.8,18.02929105]
[1755877794944,0.002,4660.9,4660.8,18.47419105]
[1755877796070,0.002,4660.9,4660.8,18.02929105]
[1755877797272,1.651,4660.9,4660.0,8.351]
[1755877797479,0.02067431,4660.8,4660.0,8.351]
[1755877797676,0.16716743,4660.7,4660.0,8.351]
[1755877797876,0.02067431,4660.6,4660.1,3.0]
[1755877798266,0.16716743,4660.7,4660.0,8.351]
[1755877798469,3.889,4660.6,4660.1,0.4449]
[1755877798668,3.889,4660.8,4660.2,0.4449]
[1755877798846,3.889,4660.8,4660.7,15.02929105]
[1755877799046,1.651,4660.9,4660.7,18.02929105]
[1755877799378,3.9952,4660.8,4660.7,18.02929105]
[1755877800380,4.55982,4660.8,4660.1,3.0]
[1755877800554,0.1072,4660.3,4660.1,3.0]
[1755877800756,0.1064,4660.3,4660.1,3.0]
[1755877801082,0.1072,4660.4,4660.2,0.7577]
[1755877801287,0.12787431,4660.4,4660.3,18.02929105]
[1755877801592,0.67106174,4660.4,4660.0,8.351]
[1755877801886,0.1072,4660.1,4660.0,8.351]
[1755877802187,1.651,4660.9,4660.3,15.02929105]
[1755877802188,3.886,4660.6,4660.3,15.02929105]
[1755877802363,3.886,4660.6,4660.4,3.0]
[1755877802682,0.1072,4660.4,4660.1,3.0]
[1755877802892,0.02067431,4660.3,4660.1,3.0]
[1755877803448,0.68067431,4660.3,4660.0,8.351]
[1755877803648,0.7672,4660.1,4660.0,8.351]
[1755877803883,4.15215743,4660.1,4660.0,8.351]
[1755877804179,4.29385743,4660.1,4660.0,8.351]
[1755877804379,0.1072,4660.1,4660.0,8.351]
[1755877804582,3.9932,4660.1,4660.0,8.351]
[1755877805185,0.1072,4660.1,4660.0,8.351]
[1755877805703,3.9912,4660.1,4660.0,8.351]
[1755877806082,3.9902,4660.1,4660.0,8.351]
[1755877806493,5.19092,4660.1,4660.0,8.351]
[1755877806694,1.05902,4660.1,4660.0,8.351]
[1755877806875,3.9962,4660.1,4660.0,8.351]
[1755877807203,0.1072,4660.1,4660.0,8.351]
[1755877807402,4.01687431,4660.1,4660.0,8.351]
[1755877807606,4.81857431,4660.1,4660.0,8.351]
[1755877807902,1.3576,4660.1,4660.0,8.351]
[1755877808103,5.40203431,4660.1,4660.0,8.351]
[1755877808304,5.39136,4660.1,4660.0,8.351]
[1755877808608,5.39036,4660.1,4660.0,8.351]
[1755877808819,5.38936,4660.1,4660.0,8.351]
[1755877809123,4.0022,4660.1,4660.0,8.351]
[1755877809327,4.0042,4660.1,4660.0,8.351]
[1755877809479,0.1072,4660.1,4660.0,11.351]
[1755877809679,3.896,4660.6,4660.1,3.0]
[1755877809874,0.02067431,4660.5,4660.2,0.4579]
[1755877810108,0.1072,4660.6,4660.5,18.02929105]
[1755877810411,0.002,4660.9,4660.6,3.0]
[1755877810715,1.649,4661.8,4660.8,3.0]
[1755877810878,1.649,4661.8,4661.7,18.02929105]
[1755877811401,1.7562,4661.8,4661.7,18.02929105]
[1755877811588,1.7562,4661.8,4660.9,0.5651]
[1755877811909,1.7562,4661.8,4660.9,3.0]
[1755877811910,0.1072,4661.1,4660.9,3.0]
[1755877812393,0.02067431,4661.0,4660.9,3.4579]
[1755877812722,0.01987431,4661.0,4660.9,3.4579]
[1755877813014,4.0022,4661.5,4660.9,3.5651]
[1755877813230,0.1072,4661.5,4661.4,18.02929105]
[1755877813392,0.1072,4661.5,4661.4,18.48719105]
[1755877813716,0.1072,4661.5,4661.4,18.02929105]
[1755877813916,0.7672,4661.5,4661.4,17.52929105]
[1755877814385,0.7672,4661.5,4661.4,17.69128201]
[1755877815389,0.68,4661.5,4661.4,17.69128201]
[1755877815720,0.68,4661.5,4661.4,17.52929105]
[1755877815887,1.3023,4661.5,4660.6,3.0]
[1755877816086,1.3023,4661.5,4660.5,15.02929105]
[1755877816087,1.2823,4661.5,4660.5,15.02929105]
[1755877816427,0.002,4662.1,4661.4,15.02929105]
[1755877816597,0.662,4662.1,4661.5,3.0]
[1755877817225,0.7672,4661.6,4661.5,3.0]
[1755877817426,4.6552,4661.6,4661.5,3.0]
[1755877817588,4.548,4661.6,4661.5,3.4579]
[1755877817794,0.66,4661.6,4661.5,3.4579]
[1755877818321,0.66,4661.6,4661.5,3.0]
[1755877818923,0.66,4661.6,4661.4,18.02929105]
[1755877818924,0.66,4661.5,4661.4,18.02929105]
[1755877819488,0.66,4661.5,4661.4,15.02929105]
[1755877819690,2.308,4661.5,4660.7,15.02929105]
[1755877819923,2.308,4661.5,4660.8,3.0]
[1755877820237,3.883,4661.4,4660.8,3.0]
[1755877820401,0.1072,4660.9,4660.8,3.0]
[1755877820735,0.66,4660.8,4660.7,18.02929105]
[1755877821025,0.4542,4662.4,4662.0,3.23508]
[1755877821324,5.531,4662.1,4662.0,3.23508]
[1755877821513,6.23692,4662.1,4662.0,3.23508]
[1755877821909,6.68912,4662.1,4662.0,3.23508]
[1755877822420,9.68912,4662.1,4660.6,0.001]
[1755877822622,8.96675761,4662.0,4660.6,0.001]
[1755877822788,0.46145761,4661.9,4660.6,0.001]
[1755877822991,3.66,4661.7,4660.6,0.001]
[1755877823195,0.7672,4660.7,4660.6,0.001]
[1755877823437,2.4152,4660.7,4660.6,0.001]
[1755877823599,6.2972,4660.7,4660.6,0.001]
[1755877823786,6.6495,4660.7,4660.6,0.001]
[1755877823990,7.24822,4660.7,4660.6,0.001]
[1755877824410,10.24822,4660.7,4660.6,0.001]
[1755877824587,3.66,4660.6,4659.8,0.021]
[1755877824791,0.7672,4659.9,4659.8,0.021]
[1755877824991,3.66,4659.8,4659.2,0.001]
[1755877825230,3.66,4659.8,4657.3,0.001]
[1755877825231,5.309,4659.6,4657.3,0.001]
[1755877825432,0.66,4658.6,4655.0,15.02929105]
[1755877825593,0.66,4658.6,4654.8,2.11572142]
[1755877825594,3.66,4658.4,4655.6,0.11211182]
[1755877825791,0.66,4657.7,4654.8,0.02]
[1755877825987,1.649,4657.8,4654.8,0.02]
[1755877825988,3.66,4657.5,4654.8,0.02]
[1755877826191,10.511,4657.6,4654.8,0.02]
[1755877826192,5.309,4656.7,4654.8,0.02]
[1755877826436,0.66,4655.5,4652.8,0.021]
[1755877826743,15.02929105,4656.1,4649.8,0.02]
[1755877826744,0.66,4654.5,4650.9,15.48719105]
[1755877827032,3.66,4654.3,4650.3,15.48719105]
[1755877827230,0.66,4653.5,4651.0,0.18219361]
[1755877827435,3.66,4653.3,4651.0,0.18219361]
[1755877827618,3.66,4653.3,4650.5,0.4579]
[1755877827619,3.0,4653.1,4650.5,15.48719105]
[1755877827818,0.66,4653.0,4650.5,15.48719105]
[1755877828024,0.66,4652.8,4651.2,15.02929105]
[1755877828224,3.0,4653.3,4651.1,0.4579]
[1755877828225,0.66,4652.6,4651.1,0.4579]
[1755877828464,0.66,4652.6,4651.9,15.02929105]
[1755877828616,0.66,4652.6,4652.2,0.4579]
[1755877828820,0.66,4652.4,4652.1,0.001]
[1755877829015,0.66,4652.6,4652.1,0.001]
[1755877829224,0.66,4652.4,4652.1,0.001]
[1755877829421,0.66,4652.2,4652.1,0.001]
[1755877829630,1.1854,4652.2,4652.1,0.001]
[1755877829827,1.4477,4652.2,4652.1,0.001]
[1755877830035,1.1854,4652.2,4652.1,0.001]
[1755877830237,3.938,4652.2,4652.1,0.001]
[1755877830532,4.598,4652.2,4652.1,0.001]
[1755877830734,0.66,4652.2,4652.1,0.001]
[1755877831066,3.938,4652.2,4652.1,0.4589]
[1755877831346,3.939,4653.2,4652.1,0.4589]
[1755877831548,3.939,4653.2,4652.6,15.02929105]
[1755877831923,3.939,4653.2,4652.7,0.4579]
[1755877832420,3.941,4653.1,4652.8,0.4579]
[1755877832623,1.65,4653.3,4652.6,15.02929105]
[1755877832624,1.65,4653.3,4652.9,0.4579]
[1755877832937,3.94,4653.2,4653.0,0.4579]
[1755877833139,1.65,4653.3,4653.1,0.4579]
[1755877833467,1.65,4653.3,4653.2,0.4579]
[1755877833746,3.939,4653.6,4653.2,0.4579]
[1755877833948,3.939,4653.6,4653.3,0.4579]
[1755877834154,0.66,4653.5,4653.4,0.4579]
[1755877834365,0.66,4653.5,4652.7,0.4579]
[1755877834519,0.66,4653.5,4652.1,0.001]
[1755877834520,0.66,4653.9,4653.4,0.4579]
[1755877834715,1.651,4654.0,4652.1,0.02249566]
[1755877834716,1.651,4654.0,4653.5,0.4579]
[1755877834919,3.938,4653.9,4653.6,0.4579]
[1755877835151,3.938,4653.9,4652.1,0.001]
[1755877835152,4.4969,4653.9,4652.1,0.001]
[1755877835335,0.1072,4652.2,4652.1,0.001]
[1755877835929,0.1072,4652.2,4652.1,0.4589]
[1755877836225,3.941,4652.3,4652.1,0.4589]
[1755877836424,0.5589,4653.9,4652.1,0.4589]
[1755877836425,5.158,4654.9,4652.2,0.4793952]
[1755877836741,0.1072,4654.0,4653.3,0.1072]
[1755877836950,0.1072,4654.0,4653.8,13.99805889]
[1755877837267,0.1064,4654.0,4653.9,0.4579]
[1755877837433,0.1064,4654.0,4653.9,3.4579]
[1755877837753,0.1072,4654.4,4653.9,3.64018145]
[1755877837956,1.651,4655.9,4654.0,5.23244403]
[1755877838122,0.1072,4655.6,4654.3,0.1072]
[1755877838324,0.1072,4655.6,4654.9,3.1072]
[1755877838537,1.651,4655.9,4654.9,3.0]
[1755877838740,0.1072,4655.0,4653.0,0.4298]
[1755877838941,1.0040879,4656.0,4653.0,0.4298]
[1755877838942,0.1072,4654.1,4653.8,13.99805889]
[1755877839156,0.1072,4654.1,4653.9,3.4298]
[1755877839466,0.1072,4654.5,4653.9,3.4298]
[1755877840497,1.651,4655.6,4654.8,3.0]
[1755877840645,3.94,4655.8,4654.8,3.0]
[1755877840841,0.66,4655.7,4654.9,2.12960589]
[1755877841046,1.651,4656.3,4654.9,2.12960589]
[1755877841359,1.651,4656.3,4655.6,13.99805889]
[1755877841861,0.66,4656.2,4655.6,13.99805889]
[1755877842383,5.94435104,4658.4,4655.7,3.0]
[1755877842547,6.1834351,4658.3,4656.6,13.99805889]
[1755877843349,0.3695,4658.2,4655.7,13.99805889]
[1755877843550,0.66,4658.1,4655.7,13.99805889]
[1755877843879,3.3695,4658.2,4655.8,3.0]
[1755877844181,3.0,4658.0,4655.8,3.4298]
[1755877844384,0.93710795,4657.9,4655.8,5.17258589]
[1755877844769,0.93710795,4657.9,4655.9,0.4298]
[1755877844959,0.66,4658.0,4655.9,0.4298]
[1755877845160,0.002,4657.2,4655.9,0.4298]
[1755877845351,3.932,4658.3,4657.1,13.99805889]
[1755877845551,1.651,4658.2,4657.1,13.99805889]
[1755877845781,3.931,4658.1,4657.2,0.4298]
[1755877846205,1.651,4658.2,4657.2,0.4298]
[1755877846206,1.651,4658.2,4658.0,13.99805889]
[1755877847764,0.66,4658.1,4658.0,13.99805889]
[1755877847983,0.66,4658.1,4657.0,13.99805889]
[1755877848148,0.66,4658.1,4657.1,3.0]
[1755877848492,0.66,4657.9,4657.2,0.4298]
[1755877848787,0.66,4658.1,4657.2,0.4298]
[1755877848995,1.2839,4658.1,4657.1,3.0]
[1755877849287,0.66,4658.1,4657.2,0.4298]
[1755877849455,1.651,4658.2,4657.9,13.99805889]
[1755877849654,1.651,4658.2,4658.0,0.4298]
[1755877849996,1.651,4658.2,4658.1,0.4298]
[1755877850296,3.926,4658.3,4658.1,0.4298]
[1755877850452,3.925,4658.7,4658.1,0.4298]
[1755877850651,1.65,4658.9,4658.1,0.4298]
[1755877850853,3.0,4660.4,4658.1,0.4298]
[1755877851115,0.39203851,4660.3,4659.7,13.99805889]
[1755877851317,5.158,4661.7,4659.7,13.99805889]
[1755877851318,3.923,4660.4,4659.7,13.99805889]
[1755877851482,5.573,4660.4,4659.7,13.99805889]
[1755877853399,0.66,4660.3,4659.7,13.99805889]
[1755877854908,0.66,4660.3,4658.6,13.99805889]
[1755877855219,0.66,4660.3,4657.1,0.001]
[1755877855220,0.66,4660.1,4657.6,0.4298]
[1755877855385,0.66,4660.1,4657.7,13.99805889]
[1755877855584,0.66,4660.1,4658.7,13.99805889]
[1755877855818,0.66,4659.9,4658.7,14.42785889]
[1755877856290,0.66,4659.9,4658.8,3.0]
[1755877856494,0.66,4659.7,4658.8,3.0]
[1755877857394,0.66,4659.7,4658.0,0.4298]
[1755877858093,0.66,4659.5,4658.7,3.0]
[1755877858291,0.66,4659.5,4658.8,0.4298]
[1755877858695,3.915,4659.6,4658.8,0.4298]
[1755877858890,3.915,4659.6,4659.5,13.99805889]
[1755877859198,3.914,4660.1,4659.5,14.42785889]
[1755877859401,0.45393,4660.0,4659.5,13.99805889]
[1755877859597,0.61195771,4660.0,4657.6,0.18262473]
[1755877859843,0.66,4659.6,4656.7,0.001]
[1755877860053,0.66,4658.3,4656.7,0.001]
[1755877860328,1.22341488,4657.7,4656.7,0.001]
[1755877860528,1.22341488,4657.5,4656.7,0.001]
[1755877860736,0.66,4657.1,4656.7,0.001]
[1755877860944,0.66,4656.9,4656.2,0.001]
[1755877861141,0.66,4656.2,4653.0,0.4298]
[1755877861293,1.13590359,4656.3,4653.0,0.4298]
[1755877861294,0.66,4655.6,4653.0,0.4298]
[1755877861492,0.66,4655.4,4653.4,13.99805889]
[1755877861716,0.66,4655.1,4653.4,13.99805889]
[1755877862028,0.66,4654.9,4653.1,0.4298]
[1755877862400,0.66,4654.7,4653.1,0.4298]
[1755877862593,0.66,4654.7,4653.4,13.99805889]
[1755877862795,0.66,4654.5,4653.4,13.99805889]
[1755877863112,0.231,4654.7,4653.4,13.99805889]
[1755877863113,0.66,4654.3,4653.4,13.99805889]
[1755877863313,0.66,4654.3,4649.2,0.4298]
[1755877863314,0.66,4654.3,4652.9,0.4298]
[1755877863805,0.66,4654.1,4652.9,7.4298]
[1755877864128,0.66,4653.9,4653.0,3.4298]
[1755877864633,1.65,4654.0,4653.5,3.0]
[1755877864794,1.65,4654.0,4653.6,0.4298]
[1755877865001,1.65,4654.0,4653.7,0.4298]
[1755877865236,0.66,4653.9,4653.7,0.4298]
[1755877865539,0.66,4653.9,4653.4,13.99805889]
[1755877865706,0.66,4653.9,4653.4,14.42785889]
[1755877865909,0.66,4653.9,4653.5,0.4298]
[1755877866109,3.995,4653.8,4653.6,0.4298]
[1755877867051,3.995,4653.8,4653.4,13.99805889]
[1755877867250,0.66,4653.7,4652.3,0.4298]
[1755877867418,0.66,4653.7,4652.1,0.001]
[1755877868506,0.66,4654.2,4653.4,13.99805889]
[1755877868704,3.99,4654.1,4653.4,13.99805889]
[1755877868952,0.66,4654.0,4653.4,13.99805889]
[1755877869237,0.66,4654.0,4652.1,0.001]
[1755877869238,0.66,4654.0,4652.8,0.4399]
[1755877871344,0.66,4654.0,4652.5,0.001]
[1755877871706,0.66,4654.0,4653.0,0.001]
[1755877873422,4.88560695,4653.9,4653.4,15.0839718]
[1755877873734,0.66,4653.7,4653.0,0.001]
[1755877873947,0.6592,4653.7,4653.0,0.001]
[1755877874151,1.28506545,4653.6,4653.0,0.001]
[1755877874318,4.73794364,4653.6,4653.0,0.001]
[1755877874518,3.91766545,4653.6,4653.0,0.001]
[1755877874721,5.44722168,4653.5,4653.0,0.001]
[1755877874932,1.651,4653.4,4653.0,0.001]
[1755877875346,2.0184,4653.4,4653.0,0.001]
[1755877875630,1.651,4653.4,4653.0,0.001]
[1755877875830,0.66,4653.2,4653.0,0.001]
[1755877876031,0.92784,4653.1,4653.0,0.001]
[1755877876751,1.29524,4653.1,4653.0,0.001]
[1755877877627,0.92784,4653.1,4653.0,0.001]
[1755877878021,1.29524,4653.1,4653.0,0.001]
[1755877879824,0.66,4653.0,4652.5,0.001]
[1755877880024,0.66,4652.6,4652.5,0.001]
[1755877880332,0.66,4652.6,4646.1,1.651]
[1755877880333,0.45095549,4652.6,4648.4,0.4399]
[1755877880523,0.66,4651.7,4648.4,0.4399]
[1755877880720,8.09095549,4651.7,4649.0,0.4399]
[1755877881029,8.45735549,4651.7,4649.0,0.4399]
[1755877881250,8.58694088,4651.7,4649.3,0.4399]
[1755877881451,0.66,4651.5,4648.6,0.4399]
[1755877881663,3.66,4651.3,4648.6,0.4399]
[1755877881864,7.637,4651.2,4649.1,0.4399]
[1755877882063,8.0034,4651.2,4649.1,0.4399]
[1755877882280,8.14354262,4651.2,4649.1,0.4399]
[1755877882450,4.16654262,4651.2,4649.1,0.4399]
[1755877882638,0.66,4651.1,4650.0,19.021]
[1755877882829,0.66,4650.9,4650.0,19.021]
[1755877883034,1.652,4650.8,4650.0,19.021]
[1755877883235,0.66,4650.6,4650.0,19.021]
[1755877883870,3.977,4650.7,4650.0,19.021]
[1755877883871,3.977,4650.5,4650.0,19.021]
[1755877884052,3.977,4650.5,4650.1,0.4399]
[1755877884256,3.976,4650.4,4650.2,0.4399]
[1755877884455,3.976,4650.3,4650.2,0.4399]
[1755877884769,3.976,4650.3,4650.0,19.021]
[1755877884972,1.652,4650.8,4650.1,3.0]
[1755877885169,3.975,4650.7,4650.2,0.4399]
[1755877885372,3.975,4650.7,4650.1,3.0]
[1755877885373,3.975,4650.7,4650.3,0.4399]
[1755877885759,1.652,4650.8,4650.4,0.4399]
[1755877885940,3.976,4650.7,4650.4,0.4399]
[1755877886279,5.164,4652.5,4650.4,0.4399]
[1755877886280,3.9762,4651.1,4650.4,0.4399]
[1755877886484,0.02,4652.8,4651.3,14.01018586]
[1755877886687,3.977,4652.3,4651.4,4.86241749]
[1755877886861,1.652,4652.4,4652.3,14.01018586]
[1755877887180,1.652,4652.4,4651.4,0.4399]
[1755877887390,4.638,4652.3,4651.4,0.4399]
[1755877887551,4.638,4652.3,4650.8,0.4399]
[1755877887750,0.66,4652.1,4650.1,14.45008586]
[1755877888160,0.66,4651.9,4650.2,3.0]
[1755877888359,0.66,4651.9,4650.1,14.45008586]
[1755877888679,0.66,4652.1,4650.1,14.45008586]
[1755877888886,0.45359614,4652.0,4650.1,14.45008586]
[1755877889186,0.66,4651.8,4650.2,0.4399]
[1755877889359,0.66,4651.8,4650.0,19.021]
[1755877889360,0.66,4651.6,4650.0,19.021]
[1755877889553,0.66,4651.4,4650.0,19.021]
[1755877889754,0.66,4651.2,4650.0,19.021]
[1755877890068,0.66,4650.8,4650.0,19.021]
[1755877890375,0.66,4650.6,4650.0,19.021]
[1755877890575,0.66,4650.4,4650.0,19.021]
[1755877890792,0.66,4650.2,4650.0,19.021]
[1755877890956,0.45359614,4650.1,4650.0,19.021]
[1755877891372,3.978,4650.3,4650.0,19.4609]
[1755877891571,3.978,4650.3,4650.0,19.021]
[1755877891789,3.978,4650.3,4650.1,0.4399]
[1755877891992,3.978,4650.3,4650.0,19.021]
[1755877892210,5.631,4650.5,4650.2,0.4399]
[1755877892372,5.631,4650.5,4650.0,20.9251]
[1755877892373,5.631,4650.5,4650.3,0.4399]
[1755877892575,1.652,4650.5,4650.4,0.4399]
[1755877893767,1.652,4650.5,4650.0,19.021]
[1755877893768,0.66,4650.4,4650.0,19.021]
[1755877894066,0.66,4650.4,4650.1,0.4399]
[1755877894487,1.289,4650.4,4650.0,19.021]
[1755877894802,0.1072,4650.1,4650.0,19.021]
[1755877895012,4.0812,4650.1,4650.0,19.021]
[1755877895876,4.53681646,4650.1,4650.0,19.021]
[1755877896288,5.19681646,4650.1,4650.0,19.021]
[1755877896490,5.6250999,4650.1,4650.0,19.021]
[1755877896691,5.6190999,4650.1,4650.0,19.021]
[1755877896902,5.19081646,4650.1,4650.0,19.4609]
[1755877897205,4.53081646,4650.1,4650.0,19.4609]
[1755877897384,4.0742,4650.1,4650.0,19.4609]
[1755877898281,4.0734,4650.1,4650.0,19.4609]
[1755877899318,4.0734,4650.1,4650.0,19.021]
[1755877899703,4.0734,4650.1,4650.0,19.4494]
[1755877900224,4.0734,4650.1,4650.0,19.021]
[1755877900732,4.7334,4650.1,4650.0,19.021]
[1755877901298,5.20674,4650.1,4650.0,19.021]
[1755877901535,5.6639989,4650.1,4650.0,19.021]
[1755877902211,5.1906589,4650.1,4650.0,19.021]
[1755877902806,5.1796589,4650.1,4650.0,19.021]
[1755877903231,5.1756589,4650.1,4650.0,19.021]
[1755877903443,5.1746589,4650.1,4650.0,19.021]
[1755877903739,5.1736589,4650.1,4650.0,19.021]
[1755877904411,5.69102479,4650.1,4650.0,19.021]
[1755877905006,6.05742479,4650.1,4650.0,19.021]
[1755877905338,9.05742479,4650.1,4650.0,19.021]
[1755877905543,9.05742479,4650.1,4650.0,17.85904895]
[1755877906036,9.05542479,4650.1,4650.0,17.85904895]
[1755877906200,4.74102479,4650.1,4650.0,17.85904895]
[1755877906416,9.05522479,4650.1,4650.0,17.85904895]
[1755877906758,9.83451374,4650.1,4650.0,17.85904895]
[1755877906950,4.5104589,4650.1,4650.0,17.85904895]
[1755877907415,5.08410316,4650.1,4650.0,17.85904895]
[1755877907614,4.5104589,4650.1,4650.0,17.85904895]
[1755877907924,5.1704589,4650.1,4650.0,17.85904895]
[1755877908534,5.5368589,4650.1,4650.0,17.85904895]
[1755877908736,1.83550922,4650.1,4650.0,17.85904895]
[1755877908932,5.74110316,4650.1,4650.0,17.85904895]
[1755877909130,1.79810316,4650.1,4650.0,17.85904895]
[1755877909338,5.1674589,4650.1,4650.0,17.85904895]
[1755877910415,4.5074589,4650.1,4650.0,18.28744895]
[1755877910670,4.0494,4650.1,4650.0,33.39726449]
[1755877910821,4.0494,4650.1,4650.0,35.53914249]
[1755877911160,0.1072,4650.1,4650.0,35.53914249]
[1755877911383,0.1072,4650.1,4650.0,17.86904895]
[1755877911384,4.0462,4650.1,4650.0,17.86904895]
[1755877911563,0.7672,4650.1,4650.0,17.86904895]
[1755877911768,4.7032,4650.1,4650.0,18.29744895]
[1755877912182,4.7282,4650.1,4650.0,18.29744895]
[1755877912390,4.0682,4650.1,4650.0,18.29744895]
[1755877912687,4.0682,4650.1,4650.0,17.86904895]
[1755877912995,4.7282,4650.1,4650.0,17.86904895]
[1755877913865,5.20102,4650.1,4650.0,17.86904895]
[1755877915001,5.20102,4650.1,4650.0,17.52876809]
[1755877916100,5.30002,4650.1,4650.0,17.52876809]
[1755877916466,5.20102,4650.1,4650.0,17.52876809]
[1755877917091,5.20102,4650.1,4650.0,17.52780809]
[1755877917292,5.30002,4650.1,4650.0,17.52780809]
[1755877917992,10.54343856,4650.1,4650.0,16.96780809]
[1755877918194,6.50843856,4650.1,4650.0,16.96410809]
[1755877918375,10.33223856,4650.1,4650.0,16.96410809]
[1755877918711,6.40123856,4650.1,4650.0,16.96410809]
[1755877918891,10.33223856,4650.1,4650.0,16.96410809]
[1755877919063,6.60061487,4650.1,4650.0,16.96410809]
[1755877919264,11.10569808,4650.1,4650.0,16.66591088]
[1755877919465,10.65119742,4650.1,4650.0,16.66591088]
[1755877920070,6.72019742,4650.1,4650.0,16.66591088]
[1755877920379,6.53843856,4650.1,4650.0,16.66591088]
[1755877920573,7.19843856,4650.1,4650.0,16.66591088]
[1755877920901,10.65706476,4650.1,4650.0,16.66591088]
[1755877921202,10.65706476,4650.1,4650.0,16.11591088]
[1755877921373,11.4303881,4650.1,4650.0,16.11591088]
[1755877921580,10.75734426,4650.1,4650.0,13.38801584]
[1755877921765,30.24941265,4650.1,4650.0,7.35003567]
[1755877921967,2.921,4649.9,4649.5,0.001]
[1755877922167,6.69896237,4649.9,4649.5,0.001]
[1755877922367,12.16149616,4649.9,4649.5,0.001]
[1755877922613,10.99566237,4649.9,4647.8,0.02]
[1755877922778,0.6592,4648.3,4647.8,0.02]
[1755877922969,3.57333483,4648.1,4647.8,0.02]
[1755877923164,1.23163423,4648.0,4647.8,0.02]
[1755877923372,3.45914476,4648.1,4647.8,0.02]
[1755877923569,3.3627,4647.9,4647.8,0.02]
[1755877923876,0.45914476,4647.9,4647.8,0.02]
[1755877924089,3.934,4647.9,4647.8,0.02]
[1755877924296,5.167,4648.2,4647.8,0.4484]
[1755877924600,1.653,4647.9,4647.8,0.02]
[1755877924800,5.59,4647.9,4647.8,0.02]
[1755877924984,6.25,4647.9,4647.8,0.02]
[1755877925377,10.07144246,4647.9,4647.8,0.02]
[1755877925579,6.13444246,4647.9,4647.8,0.02]
[1755877925780,3.66,4647.8,4645.8,0.02]